fUSD/lending_fUSD_20250327
["ID","MTS","AMOUNT","RATE_DAILY","PERIOD"]
[356734519,1743069076346,-517.29273453,0.00041095,30]
[356734520,1743069076370,-517.07974841,0.00041095,30]
[356734521,1743069076394,-623.3270719,0.00041095,30]
[356734522,1743069076418,-500.0,0.00041095,30]
[356734523,1743069076442,-504.64981303,0.00041095,30]
[356734524,1743069076466,-589.38030371,0.00041095,30]
[356734525,1743069076490,-500.0,0.00041095,30]
[356734526,1743069076514,-500.0,0.00041095,30]
[356734527,1743069076537,-500.0,0.00041095,30]
[356734528,1743069076560,-503.95181562,0.00041095,30]
[356734529,1743069076584,-500.0,0.00041095,30]
[356734530,1743069076608,-500.0,0.00041095,30]
[356734531,1743069076633,-500.0,0.00041095,30]
[356734532,1743069076824,-186.77618851,0.00041095,30]
[356734533,1743069076851,-516.68692344,0.00041095,30]
[356734534,1743069076876,-500.0,0.00041095,30]
[356734535,1743069076902,-500.0,0.00041095,30]
[356734536,1743069076928,-500.0,0.00041095,30]
[356734537,1743069076953,-562.87455,0.00041095,30]
[356734538,1743069076977,-520.29503493,0.00041095,30]
[356734539,1743069077005,-526.78026901,0.00041095,30]
[356734540,1743069077030,-516.78175646,0.00041095,30]
[356734541,1743069077056,-536.51667275,0.00041095,30]
[356734542,1743069077081,-500.0,0.00041095,30]
[356734543,1743069077106,-590.20304314,0.00041095,30]
[356734544,1743069077132,-546.02270731,0.00041095,30]
[356734545,1743069077157,-536.32284208,0.00041095,30]
[356734546,1743069077183,-615.41929737,0.00041095,30]
[356734547,1743069077209,-530.26383853,0.00041095,30]
[356734548,1743069077238,-500.0,0.00041095,30]
[356734549,1743069077266,-500.0,0.00041095,30]
[356734550,1743069077294,-500.0,0.00041095,30]
[356734551,1743069077319,-616.81854717,0.00041095,30]
[356734552,1743069077343,-524.98298773,0.00041095,30]
[356734553,1743069077368,-500.0,0.00041095,30]
[356734554,1743069077393,-347.66528835,0.00041095,30]
[356734555,1743069077417,-202.25891945,0.00041095,30]
[356734556,1743069077440,-513.74634298,0.00041095,30]
[356734557,1743069077464,-573.68361273,0.00041095,30]
[356734558,1743069077489,-500.0,0.00041095,30]
[356734559,1743069077514,-500.0,0.00041095,30]
[356734560,1743069077539,-522.10946378,0.00041095,30]
[356734561,1743069077563,-338.0570518,0.00041095,30]
[356734562,1743069077587,-542.462739,0.00041095,30]
[356734563,1743069077611,-171.31207659,0.00041095,30]
[356734564,1743069077636,-421.02785131,0.00041095,30]
[356734565,1743069077661,-552.72842411,0.00041095,30]
[356734566,1743069077686,-649.40959128,0.00041095,30]
[356734567,1743069077711,-500.0,0.00041095,30]
[356734568,1743069077734,-500.0,0.00041095,30]
[356734569,1743069077759,-500.0,0.00041095,30]
[356734570,1743069077785,-418.07170793,0.00041095,30]
[356734571,1743069077809,-500.0,0.00041095,30]
[356734572,1743069077833,-198.69183458,0.00041095,30]
[356734573,1743069077858,-500.0,0.00041095,30]
[356734574,1743069077883,-518.61461288,0.00041095,30]
[356734575,1743069077907,-217.92189537,0.00041095,30]
[356734576,1743069077931,-500.0,0.00041095,30]
[356734577,1743069077956,-500.0,0.00041095,30]
[356734578,1743069077981,-500.0,0.00041095,30]
[356734579,1743069078006,-500.0,0.00041095,30]
[356734580,1743069078031,-517.95466739,0.00041095,30]
[356734581,1743069078055,-500.0,0.00041095,30]
[356734582,1743069078080,-600.16827876,0.00041095,30]
[356734583,1743069078104,-500.0,0.00041095,30]
[356734584,1743069078129,-500.0,0.00041095,30]
[356734585,1743069078155,-500.0,0.00041095,30]
[356734586,1743069078180,-505.69634679,0.00041095,30]
[356734587,1743069078206,-500.0,0.00041095,30]
[356734588,1743069078231,-510.99635789,0.00041095,30]
[356734589,1743069078258,-546.76086505,0.00041095,30]
[356734590,1743069078284,-500.0,0.00041095,30]
[356734591,1743069078315,-500.0,0.00041095,30]
[356734592,1743069078341,-566.26391424,0.00041095,30]
[356734593,1743069078366,-500.0,0.00041095,30]
[356734594,1743069078393,-888.41,0.00041095,30]
[356734595,1743069078418,-513.76354582,0.00041095,30]
[356734596,1743069078443,-500.0,0.00041095,30]
[356734597,1743069078470,-500.0,0.00041095,30]
[356734598,1743069078499,-500.0,0.00041095,30]
[356734599,1743069078526,-507.17049701,0.00041095,30]
[356734600,1743069078553,-507.7643308,0.00041095,30]
[356734601,1743069078580,-500.0,0.00041095,30]
[356734602,1743069078605,-3951.73,0.00041095,30]
[356734603,1743069078630,-500.0,0.00041095,30]
[356734604,1743069078656,-535.08247589,0.00041095,30]
[356734605,1743069078682,-500.0,0.00041095,30]
[356734606,1743069078708,-500.0,0.00041095,30]
[356734607,1743069078733,-722.98,0.00041095,30]
[356734608,1743069078758,-522.51012483,0.00041095,30]
[356734609,1743069078784,-500.0,0.00041095,30]
[356734610,1743069078809,-556.77713808,0.00041095,30]
[356734611,1743069078834,-2274.62,0.00041095,30]
[356734612,1743069078859,-500.0,0.00041095,30]
[356734613,1743069078884,-500.0,0.00041095,30]
[356734614,1743069078910,-508.95414721,0.00041095,30]
[356734615,1743069078935,-500.0,0.00041095,30]
[356734616,1743069078959,-518.13483701,0.00041095,30]
[356734617,1743069078986,-511.79098738,0.00041095,30]
[356734618,1743069079012,-505.63027578,0.00041095,30]
[356734619,1743069079037,-515.62247844,0.00041095,30]
[356734620,1743069079064,-500.0,0.00041095,30]
[356734621,1743069079090,-527.91944415,0.00041095,30]
[356734622,1743069079116,-505.81733771,0.00041095,30]
[356734623,1743069079143,-562.2938139,0.00041095,30]
[356734624,1743069079170,-516.66346937,0.00041095,30]
[356734625,1743069079197,-511.61500444,0.00041095,30]
[356734626,1743069079222,-417.65326914,0.00041095,30]
[356734627,1743069079249,-500.0,0.00041095,30]
[356734628,1743069079275,-546.8712649,0.00041095,30]
[356734629,1743069079303,-520.02811945,0.00041095,30]
[356734630,1743069079331,-515.20490465,0.00041095,30]
[356734631,1743069079358,-508.81881205,0.00041095,30]
[356734632,1743069079385,-601.19011393,0.00041095,30]
[356734633,1743069079409,-508.30637337,0.00041095,30]
[356734634,1743069079434,-543.83809365,0.00041095,30]
[356734635,1743069079459,-500.27969237,0.00041095,30]
[356734636,1743069079483,-501.78014427,0.00041095,30]
[356734637,1743069079508,-564.80783883,0.00041095,30]
[356734638,1743069079694,-526.88260191,0.00041095,30]
[356734639,1743069079720,-500.0,0.00041095,30]
[356734640,1743069079747,-491.77052967,0.00041095,30]
[356734641,1743069079773,-500.0,0.00041095,30]
[356734642,1743069079797,-503.14927708,0.00041095,30]
[356734643,1743069079823,-438.60665723,0.00041095,30]
[356734644,1743069079847,-500.0,0.00041095,30]
[356734645,1743069079872,-503.76569449,0.00041095,30]
[356734646,1743069079896,-504.59114183,0.00041095,30]
[356734647,1743069079920,-505.50793469,0.00041095,30]
[356734648,1743069079945,-500.0,0.00041095,30]
[356734649,1743069079969,-524.04864729,0.00041095,30]
[356734650,1743069079995,-550.66260134,0.00041095,30]
[356734651,1743069080020,-636.87395986,0.00041095,30]
[356734652,1743069080046,-500.0,0.00041095,30]
[356734653,1743069080070,-500.0,0.00041095,30]
[356734654,1743069080094,-535.99847515,0.00041095,30]
[356734655,1743069080118,-500.0,0.00041095,30]
[356734656,1743069080141,-554.02401853,0.00041095,30]
[356734657,1743069080165,-503.27344819,0.00041095,30]
[356734658,1743069080188,-500.52165141,0.00041095,30]
[356734659,1743069080214,-516.04103692,0.00041095,30]
[356734660,1743069080238,-504.39586464,0.00041095,30]
[356734661,1743069080264,-521.92054343,0.00041095,30]
[356734662,1743069080290,-498.71661904,0.00041095,30]
[356734663,1743069080318,-549.92069158,0.00041095,30]
[356734664,1743069080343,-500.0,0.00041095,30]
[356734665,1743069080368,-508.09287895,0.00041095,30]
[356734666,1743069080393,-500.0,0.00041095,120]
[356734667,1743069080419,-501.01058874,0.00041095,30]
[356734668,1743069080443,-447.24496424,0.00041095,30]
[356734669,1743069080470,-500.0,0.00041095,30]
[356734670,1743069080497,-504.85254312,0.00041095,30]
[356734671,1743069080522,-532.39526892,0.00041095,30]
[356734672,1743069080546,-500.0,0.00041095,30]
[356734673,1743069080571,-500.0,0.00041095,30]
[356734674,1743069080595,-512.85096145,0.00041095,30]
[356734675,1743069080618,-520.23475986,0.00041095,30]
[356734676,1743069080643,-529.3827364,0.00041095,30]
[356734677,1743069080668,-500.0,0.00041095,30]
[356734678,1743069080693,-516.37833575,0.00041095,30]
[356734679,1743069080717,-511.42447892,0.00041095,30]
[356734680,1743069080742,-523.68582201,0.00041095,30]
[356734681,1743069080767,-500.0,0.00041095,30]
[356734682,1743069080791,-578.13699306,0.00041095,30]
[356734683,1743069080816,-500.0,0.00041095,30]
[356734684,1743069080841,-411.60311262,0.00041095,30]
[356734685,1743069080866,-500.0,0.00041095,30]
[356734686,1743069080891,-565.06060955,0.00041095,30]
[356734687,1743069080916,-504.13273976,0.00041095,30]
[356734688,1743069080940,-350.27499051,0.00041095,30]
[356734689,1743069080964,-536.43317179,0.00041095,30]
[356734690,1743069080989,-500.0,0.00041095,30]
[356734691,1743069081015,-504.01834694,0.00041095,30]
[356734692,1743069081040,-529.96268007,0.00041095,30]
[356734693,1743069081065,-500.0,0.00041095,30]
[356734694,1743069081091,-618.95400035,0.00041095,30]
[356734695,1743069081115,-500.0,0.00041095,30]
[356734696,1743069081141,-564.97369369,0.00041095,30]
[356734697,1743069081167,-533.81167059,0.00041095,30]
[356734698,1743069081193,-500.0,0.00041095,30]
[356734699,1743069081218,-519.46913405,0.00041095,30]
[356734700,1743069081242,-407.46179286,0.00041095,30]
[356734701,1743069081269,-535.12734646,0.00041095,30]
[356734702,1743069081297,-519.7699323,0.00041095,30]
[356734703,1743069081322,-517.5735981,0.00041095,30]
[356734704,1743069081349,-500.0,0.00041095,30]
[356734705,1743069081376,-513.89652331,0.00041095,30]
[356734706,1743069081401,-530.8256284,0.00041095,30]
[356734707,1743069081427,-500.0,0.00041095,30]
[356734708,1743069081453,-543.75819752,0.00041095,30]
[356734709,1743069081478,-500.0,0.00041095,30]
[356734710,1743069081504,-500.0,0.00041095,30]
[356734711,1743069081530,-500.0,0.00041095,30]
[356734712,1743069081556,-532.41060717,0.00041095,30]
[356734713,1743069081583,-500.0,0.00041095,30]
[356734714,1743069081608,-207.99457812,0.00041095,30]
[356734715,1743069081633,-522.09295585,0.00041095,30]
[356734716,1743069081659,-500.0,0.00041095,30]
[356734717,1743069081684,-532.59806517,0.00041095,30]
[356734718,1743069081709,-533.4965741,0.00041095,30]
[356734719,1743069081735,-500.0,0.00041095,30]
[356734720,1743069081759,-500.0,0.00041095,30]
[356734721,1743069081784,-522.7732172,0.00041095,30]
[356734722,1743069081809,-152.54062021,0.00041095,30]
[356734723,1743069081835,-500.0,0.00041095,30]
[356734724,1743069081862,-533.13561633,0.00041095,30]
[356734725,1743069081890,-536.47398949,0.00041095,30]
[356734726,1743069081918,-522.28391357,0.00041095,30]
[356734727,1743069081945,-577.61257764,0.00041095,30]
[356734728,1743069081972,-544.13101851,0.00041095,30]
[356734729,1743069082004,-571.3,0.00041095,30]
[356734730,1743069082029,-500.0,0.00041095,30]
[356734731,1743069082057,-500.0,0.00041095,30]
[356734732,1743069082084,-500.0,0.00041095,30]
[356734733,1743069082110,-500.0,0.00041095,30]
[356734734,1743069082136,-518.52408718,0.00041095,30]
[356734735,1743069082162,-500.0,0.00041095,30]
[356734736,1743069082187,-524.15078054,0.00041095,30]
[356734737,1743069082214,-593.19613299,0.00041095,30]
[356734738,1743069082240,-632.57460276,0.00041095,30]
[356734739,1743069082269,-1000.0,0.00041095,30]
[356734740,1743069082298,-519.59948695,0.00041095,30]
[356734741,1743069082325,-513.59227076,0.00041095,30]
[356734742,1743069082354,-500.0,0.00041095,30]
[356734743,1743069082381,-181.34209823,0.00041095,30]
[356734744,1743069082538,-500.0,0.00041095,30]
[356734745,1743069082565,-500.0,0.00041095,30]
[356734746,1743069082590,-500.0,0.00041095,30]
[356734747,1743069082618,-500.0,0.00041095,30]
[356734748,1743069082645,-500.0,0.00041095,30]
[356734749,1743069082670,-518.8268378,0.00041095,30]
[356734750,1743069082696,-500.0,0.00041095,30]
[356734751,1743069082722,-507.08241745,0.00041095,30]
[356734752,1743069082749,-500.0,0.00041095,30]
[356734753,1743069082776,-514.99886578,0.00041095,30]
[356734754,1743069082800,-512.09068959,0.00041095,30]
[356734755,1743069082826,-616.88412858,0.00041095,30]
[356734756,1743069082851,-500.0,0.00041095,30]
[356734757,1743069082876,-541.87948215,0.00041095,30]
[356734758,1743069082901,-500.0,0.00041095,30]
[356734759,1743069082925,-517.12021822,0.00041095,30]
[356734760,1743069082950,-531.59671905,0.00041095,30]
[356734761,1743069082976,-221.99698259,0.00041095,30]
[356734762,1743069083002,-500.0,0.00041095,30]
[356734763,1743069083028,-606.36814884,0.00041095,30]
[356734764,1743069083054,-507.25967501,0.00041095,30]
[356734765,1743069083080,-500.0,0.00041095,30]
[356734766,1743069083105,-500.0,0.00041095,30]
[356734767,1743069083130,-599.58065819,0.00041095,30]
[356734768,1743069083155,-510.20813966,0.00041095,30]
[356734769,1743069083181,-611.47819985,0.00041095,30]
[356734770,1743069083205,-506.95,0.00041095,30]
[356734771,1743069083231,-500.0,0.00041095,30]
[356734772,1743069083259,-500.0,0.00041095,30]
[356734773,1743069083285,-500.0,0.00041095,30]
[356734774,1743069083312,-500.0,0.00041095,30]
[356734775,1743069083339,-500.0,0.00041095,30]
[356734776,1743069083366,-500.0,0.00041095,30]
[356734777,1743069083393,-596.98007721,0.00041095,30]
[356734778,1743069083420,-500.0,0.00041095,30]
[356734779,1743069083445,-183.15722008,0.00041095,30]
[356734780,1743069083470,-571.64185958,0.00041095,30]
[356734781,1743069083496,-500.0,0.00041095,30]
[356734782,1743069083521,-500.0,0.00041095,30]
[356734783,1743069083546,-515.04641693,0.00041095,30]
[356734784,1743069083570,-500.0,0.00041095,30]
[356734785,1743069083595,-11650.34,0.00041095,30]
[356734786,1743069083621,-500.0,0.00041095,30]
[356734787,1743069083646,-590.73298264,0.00041095,30]
[356734788,1743069083671,-510.54227651,0.00041095,30]
[356734789,1743069083696,-500.0,0.00041095,30]
[356734790,1743069083720,-500.0,0.00041095,30]
[356734791,1743069083745,-500.0,0.00041095,30]
[356734792,1743069083772,-506.34522845,0.00041095,30]
[356734793,1743069083796,-500.82802619,0.00041095,30]
[356734794,1743069083822,-500.0,0.00041095,30]
[356734795,1743069083846,-508.63094671,0.00041095,30]
[356734796,1743069083871,-500.0,0.00041095,30]
[356734797,1743069083895,-500.0,0.00041095,30]
[356734798,1743069083920,-459.01935559,0.00041095,30]
[356734799,1743069083944,-563.70668614,0.00041095,30]
[356734800,1743069083968,-507.94947069,0.00041095,30]
[356734801,1743069083993,-500.0,0.00041095,30]
[356734802,1743069084019,-500.0,0.00041095,30]
[356734803,1743069084044,-500.0,0.00041095,30]
[356734804,1743069084070,-500.0,0.00041095,30]
[356734805,1743069084096,-502.92804577,0.00041095,30]
[356734806,1743069084122,-507.78809273,0.00041095,30]
[356734807,1743069084148,-500.0,0.00041095,30]
[356734808,1743069084175,-500.0,0.00041095,30]
[356734809,1743069084200,-505.94930594,0.00041095,30]
[356734810,1743069084225,-538.41783532,0.00041095,30]
[356734811,1743069084251,-500.0,0.00041095,30]
[356734812,1743069084275,-500.0,0.00041095,30]
[356734813,1743069084303,-500.0,0.00041095,30]
[356734814,1743069084329,-500.0,0.00041095,30]
[356734815,1743069084355,-519.13603884,0.00041095,30]
[356734816,1743069084382,-500.0,0.00041095,30]
[356734817,1743069084408,-500.0,0.00041095,30]
[356734818,1743069084434,-500.0,0.00041095,30]
[356734819,1743069084460,-513.51744941,0.00041095,30]
[356734820,1743069084487,-500.0,0.00041095,30]
[356734821,1743069084512,-503.24398888,0.00041095,30]
[356734822,1743069084538,-500.0,0.00041095,30]
[356734823,1743069084564,-519.31357176,0.00041095,30]
[356734824,1743069084590,-520.61730488,0.00041095,30]
[356734825,1743069084615,-500.0,0.00041095,30]
[356734826,1743069084640,-503.00317336,0.00041095,30]
[356734827,1743069084665,-514.22419255,0.00041095,30]
[356734828,1743069084691,-500.0,0.00041095,30]
[356734829,1743069084716,-573.74477416,0.00041095,30]
[356734830,1743069084742,-186.00587017,0.00041095,30]
[356734831,1743069084767,-500.0,0.00041095,30]
[356734832,1743069084792,-500.0,0.00041095,30]
[356734833,1743069084818,-575.07256267,0.00041095,30]
[356734834,1743069084843,-500.0,0.00041095,30]
[356734835,1743069084867,-500.0,0.00041095,30]
[356734836,1743069084893,-500.0,0.00041095,30]
[356734837,1743069084918,-500.0,0.00041095,30]
[356734838,1743069084944,-446.83514535,0.00041095,30]
[356734839,1743069084969,-500.0,0.00041095,30]
[356734840,1743069084993,-500.0,0.00041095,30]
[356734841,1743069085020,-618.66606133,0.00041095,30]
[356734842,1743069085045,-501.45915607,0.00041095,30]
[356734843,1743069085072,-228.07116786,0.00041095,30]
[356734844,1743069085099,-500.0,0.00041095,30]
[356734845,1743069085124,-602.14851572,0.00041095,30]
[356734846,1743069085151,-500.0,0.00041095,30]
[356734847,1743069085176,-500.0,0.00041095,30]
[356734848,1743069085202,-2740.9,0.00041095,30]
[356734849,1743069085347,-500.0,0.00041095,30]
[356734850,1743069085383,-550.3141154,0.00041095,30]
[356734851,1743069085410,-500.0,0.00041095,30]
[356734852,1743069085436,-500.0,0.00041095,30]
[356734853,1743069085462,-536.335535,0.00041095,30]
[356734854,1743069085487,-500.0,0.00041095,30]
[356734855,1743069085513,-500.0,0.00041095,30]
[356734856,1743069085537,-500.0,0.00041095,30]
[356734857,1743069085562,-500.0,0.00041095,30]
[356734858,1743069085587,-501.47636276,0.00041095,30]
[356734859,1743069085612,-529.78564775,0.00041095,30]
[356734860,1743069085638,-500.0,0.00041095,30]
[356734861,1743069085664,-500.0,0.00041095,30]
[356734862,1743069085689,-500.18922591,0.00041095,30]
[356734863,1743069085714,-610.96203099,0.00041095,30]
[356734864,1743069085739,-515.7068934,0.00041095,30]
[356734865,1743069085765,-502.91319582,0.00041095,30]
[356734866,1743069085791,-549.37984552,0.00041095,30]
[356734867,1743069085816,-511.35448267,0.00041095,30]
[356734868,1743069085845,-536.43401452,0.00041095,30]
[356734869,1743069085870,-501.89601275,0.00041095,30]
[356734870,1743069085895,-500.0,0.00041095,30]
[356734871,1743069085921,-500.0,0.00041095,30]
[356734872,1743069085946,-510.54491628,0.00041095,30]
[356734873,1743069085979,-591.58751645,0.00041095,30]
[356734874,1743069086006,-502.05762874,0.00041095,30]
[356734875,1743069086033,-587.26063432,0.00041095,30]
[356734876,1743069086060,-500.0,0.00041095,30]
[356734877,1743069086086,-500.0,0.00041095,30]
[356734878,1743069086112,-510.67194742,0.00041095,30]
[356734879,1743069086139,-500.0,0.00041095,30]
[356734880,1743069086166,-543.43233399,0.00041095,30]
[356734881,1743069086192,-500.0,0.00041095,30]
[356734882,1743069086219,-518.22890778,0.00041095,30]
[356734883,1743069086245,-500.0,0.00041095,30]
[356734884,1743069086272,-500.0,0.00041095,30]
[356734885,1743069086303,-500.0,0.00041095,30]
[356734886,1743069086330,-500.0,0.00041095,30]
[356734887,1743069086358,-500.0,0.00041095,30]
[356734888,1743069086383,-500.0,0.00041095,30]
[356734889,1743069086409,-500.0,0.00041095,30]
[356734890,1743069086435,-500.0,0.00041095,30]
[356734891,1743069086461,-500.0,0.00041095,30]
[356734892,1743069086486,-500.0,0.00041095,30]
[356734893,1743069086513,-504.33534167,0.00041095,30]
[356734894,1743069086539,-524.76088691,0.00041095,30]
[356734895,1743069086566,-500.0,0.00041095,30]
[356734896,1743069086593,-518.42397969,0.00041095,30]
[356734897,1743069086620,-500.0,0.00041095,30]
[356734898,1743069086647,-500.0,0.00041095,30]
[356734899,1743069086672,-533.50758143,0.00041095,30]
[356734900,1743069086699,-500.0,0.00041095,30]
[356734901,1743069086725,-528.32117393,0.00041095,120]
[356734902,1743069086753,-532.37932145,0.00041095,30]
[356734903,1743069086781,-500.0,0.00041095,30]
[356734904,1743069086808,-500.0,0.00041095,30]
[356734905,1743069086836,-500.0,0.00041095,30]
[356734906,1743069086864,-504.36274273,0.00041095,30]
[356734907,1743069086893,-636.51130777,0.00041095,30]
[356734908,1743069086920,-500.0,0.00041095,30]
[356734909,1743069086946,-500.0,0.00041095,30]
[356734910,1743069086973,-500.0,0.00041095,30]
[356734911,1743069086999,-500.0,0.00041095,30]
[356734912,1743069087027,-504.8261874,0.00041095,30]
[356734913,1743069087052,-500.0,0.00041095,30]
[356734914,1743069087079,-503.41294768,0.00041095,30]
[356734915,1743069087105,-500.0,0.00041095,30]
[356734916,1743069087131,-500.0,0.00041095,30]
[356734917,1743069087156,-1033.24,0.00041095,30]
[356734918,1743069087183,-500.0,0.00041095,30]
[356734919,1743069087209,-511.10349724,0.00041095,30]
[356734920,1743069087237,-536.18853843,0.00041095,30]
[356734921,1743069087264,-615.50694341,0.00041095,30]
[356734922,1743069087292,-590.22497709,0.00041095,30]
[356734923,1743069087337,-500.0,0.00041095,30]
[356734924,1743069087369,-1500.0,0.00041095,30]
[356734925,1743069087399,-500.0,0.00041095,30]
[356734926,1743069087428,-574.60462814,0.00041095,30]
[356734927,1743069087455,-500.0,0.00041095,30]
[356734928,1743069087483,-506.13889829,0.00041095,30]
[356734929,1743069087510,-319.06812126,0.00041095,30]
[356734930,1743069087538,-500.0,0.00041095,30]
[356734931,1743069087566,-500.0,0.00041095,30]
[356734932,1743069087596,-647.48816636,0.00041095,30]
[356734933,1743069087622,-500.0,0.00041095,30]
[356734934,1743069087648,-500.0,0.00041095,30]
[356734935,1743069087678,-589.44259093,0.00041095,30]
[356734936,1743069087706,-500.0,0.00041095,30]
[356734937,1743069087735,-502.00425361,0.00041095,30]
[356734938,1743069087764,-823.07,0.00041095,30]
[356734939,1743069087792,-500.0,0.00041095,30]
[356734940,1743069087819,-254.19316067,0.00041095,30]
[356734941,1743069087846,-500.0,0.00041095,30]
[356734942,1743069087872,-500.0,0.00041095,30]
[356734943,1743069087899,-500.0,0.00041095,30]
[356734944,1743069087927,-574.94292418,0.00041095,30]
[356734945,1743069087955,-515.67026086,0.00041095,30]
[356734946,1743069087982,-500.0,0.00041095,30]
[356734947,1743069088011,-500.0,0.00041095,30]
[356734948,1743069088037,-515.19727577,0.00041095,30]
[356734949,1743069088065,-561.23593549,0.00041095,30]
[356734950,1743069088091,-559.75528028,0.00041095,30]
[356734951,1743069088117,-500.0,0.00041095,30]
[356734952,1743069088145,-624.27759165,0.00041095,30]
[356734953,1743069088313,-545.04936652,0.00041095,30]
[356734954,1743069088341,-500.0,0.00041095,30]
[356734955,1743069088368,-606.13235081,0.00041095,30]
[356734956,1743069088394,-500.0,0.00041095,30]
[356734957,1743069088420,-540.06171257,0.00041095,30]
[356734958,1743069088447,-588.47475008,0.00041095,30]
[356734959,1743069088472,-500.0,0.00041095,30]
[356734960,1743069088497,-524.38786357,0.00041095,30]
[356734961,1743069088522,-508.94136351,0.00041095,30]
[356734962,1743069088546,-517.73562879,0.00041095,30]
[356734963,1743069088572,-500.0,0.00041095,30]
[356734964,1743069088597,-500.0,0.00041095,30]
[356734965,1743069088621,-535.04416298,0.00041095,30]
[356734966,1743069088647,-500.0,0.00041095,30]
[356734967,1743069088673,-514.01826772,0.00041095,30]
[356734968,1743069088699,-556.13406394,0.00041095,30]
[356734969,1743069088725,-500.0,0.00041095,30]
[356734970,1743069088750,-518.87853127,0.00041095,30]
[356734971,1743069088775,-205.07099916,0.00041095,30]
[356734972,1743069088800,-548.45,0.00041095,30]
[356734973,1743069088825,-500.0,0.00041095,30]
[356734974,1743069088851,-500.0,0.00041095,30]
[356734975,1743069088876,-500.0,0.00041095,30]
[356734976,1743069088901,-503.23899982,0.00041095,30]
[356734977,1743069088925,-500.0,0.00041095,30]
[356734978,1743069088950,-606.74229259,0.00041095,30]
[356734979,1743069088975,-509.65464983,0.00041095,30]
[356734980,1743069088999,-591.65742429,0.00041095,30]
[356734981,1743069089023,-500.0,0.00041095,30]
[356734982,1743069089047,-503.41404111,0.00041095,30]
[356734983,1743069089073,-500.0,0.00041095,30]
[356734984,1743069089098,-500.0,0.00041095,30]
[356734985,1743069089123,-583.73734118,0.00041095,30]
[356734986,1743069089148,-533.62953814,0.00041095,30]
[356734987,1743069089174,-565.82,0.00041095,30]
[356734988,1743069089199,-598.34690068,0.00041095,30]
[356734989,1743069089224,-500.0,0.00041095,30]
[356734990,1743069089250,-505.79869847,0.00041095,30]
[356734991,1743069089277,-500.0,0.00041095,30]
[356734992,1743069089304,-522.8636817,0.00041095,30]
[356734993,1743069089330,-339.41476337,0.00041095,30]
[356734994,1743069089357,-549.12623026,0.00041095,30]
[356734995,1743069089384,-623.17345143,0.00041095,30]
[356734996,1743069089410,-500.0,0.00041095,30]
[356734997,1743069089435,-519.39255539,0.00041095,30]
[356734998,1743069089460,-506.59922689,0.00041095,30]
[356734999,1743069089485,-500.0,0.00041095,30]
[356735000,1743069089510,-181.42,0.00041095,30]
[356735001,1743069089536,-295.52926879,0.00041186,30]
[356735002,1743069089562,-900.0,0.0004126,60]
[356735003,1743069089591,-500.0,0.0004126,60]
[356735004,1743069089627,-150.0,0.00041276,30]
[356735005,1743069089658,-411.88248,0.00041288,30]
[356735006,1743069089692,-500.0,0.00041369,30]
[356735007,1743069089728,-519.72074508,0.00041369,30]
[356735008,1743069089762,-508.15016937,0.00041369,30]
[356735009,1743069089792,-500.0,0.00041369,30]
[356735010,1743069089821,-500.0,0.00041369,30]
[356735011,1743069089855,-395.06766725,0.00041369,30]
[356735012,1743069089886,-510.93545948,0.00041369,30]
[356735013,1743069089919,-515.7055406,0.00041369,30]
[356735014,1743069089950,-735.16,0.00041369,120]
[356735015,1743069089982,-534.43992874,0.00041369,30]
[356735016,1743069090014,-200.40684325,0.00041369,30]
[356735017,1743069090045,-500.0,0.00041369,30]
[356735018,1743069090077,-517.4194054,0.00041369,30]